bitfinex/quotes_ETHUSD_20220123
["timestamp","ask_amount","ask_price","bid_price","bid_amount"]
[1642933317566,0.4585,2523.4,2522.7,1.25872685]
[1642933317567,2.54927811,2523.3,2522.7,1.25872685]
[1642933317769,0.1585,2523.2,2522.7,1.25872685]
[1642933318168,1.1585,2523.2,2522.3,3.6046]
[1642933318372,0.4585,2523.2,2522.3,3.6046]
[1642933318567,0.4585,2523.2,2522.2,1.833401]
[1642933318568,1.19728626,2523.2,2522.2,1.833401]
[1642933318769,4.22298962,2523.1,2522.2,1.833401]
[1642933318980,0.17110669,2523.0,2522.2,1.833401]
[1642933319171,0.67228,2522.9,2522.2,1.833401]
[1642933319368,0.67228,2522.9,2522.2,0.049501]
[1642933319369,0.01252693,2522.4,2522.2,0.049501]
[1642933319568,0.83078,2522.3,2522.2,0.049501]
[1642933319768,1.13078,2522.3,2522.2,0.000101]
[1642933319970,1.46809631,2522.3,2522.2,0.000101]
[1642933320372,1.43078,2522.3,2522.2,0.000101]
[1642933321343,1.46475844,2522.3,2522.2,0.000101]
[1642933322144,5.37099263,2522.3,2522.2,0.000101]
[1642933322443,5.20002368,2522.3,2522.2,0.000101]
[1642933322644,2.46475844,2522.3,2522.2,0.000101]
[1642933322844,5.18529914,2522.3,2522.2,0.000101]
[1642933323149,5.27274298,2522.3,2522.2,0.000101]
[1642933323346,5.15595381,2522.3,2522.2,0.000101]
[1642933323551,5.11475844,2522.3,2522.2,0.000101]
[1642933323951,4.91647844,2522.3,2522.2,0.000101]
[1642933324158,7.57145995,2522.3,2522.2,0.000101]
[1642933324358,4.9,2522.2,2521.8,0.02]
[1642933324656,4.59217449,2522.1,2521.8,0.02]
[1642933324852,5.19217449,2522.1,2521.8,0.02]
[1642933325078,0.19828,2521.9,2521.8,0.0001]
[1642933325285,0.83078,2521.9,2521.8,0.0001]
[1642933325486,1.13078,2521.9,2521.8,0.0001]
[1642933325683,1.46598173,2521.9,2521.8,0.0001]
[1642933325884,1.30748173,2521.9,2521.8,0.0001]
[1642933326689,1.27228,2521.9,2521.8,0.0001]
[1642933327091,0.474,2521.9,2521.8,0.0001]
[1642933327286,4.2773,2522.4,2521.8,0.0001]
[1642933327487,4.47558,2522.4,2521.8,1.34652473]
[1642933327687,0.19828,2522.4,2521.8,0.0001]
[1642933327885,4.5034,2522.3,2521.8,0.0001]
[1642933328688,7.00198972,2522.3,2521.8,0.0001]
[1642933328922,1.19828,2522.2,2521.8,0.0001]
[1642933329123,3.32951714,2522.1,2521.8,0.0001]
[1642933329327,3.62951714,2522.1,2521.8,0.0001]
[1642933329524,1.3,2522.0,2521.8,0.0001]
[1642933329728,3.47032382,2521.9,2521.8,0.0001]
[1642933329928,0.97228,2521.9,2521.8,0.0001]
[1642933330129,0.474,2521.9,2521.8,0.0001]
[1642933330329,1.0,2522.2,2521.8,0.0001]
[1642933330528,4.3034,2522.3,2521.8,0.0001]
[1642933331128,4.3034,2522.3,2521.9,1.39421129]
[1642933331327,4.43423772,2522.8,2521.8,0.0001]
[1642933331528,0.19828,2522.7,2521.8,0.0001]
[1642933331729,0.52344661,2522.8,2521.8,0.0001]
[1642933331934,0.1585,2522.9,2521.8,0.0001]
[1642933332131,4.3229,2523.1,2521.9,0.04160652]
[1642933332582,4.3229,2523.1,2522.5,1.33361719]
[1642933332772,0.19828,2523.2,2522.5,1.33361719]
[1642933332973,0.19828,2523.2,2522.0,22.95]
[1642933332974,0.19828,2523.2,2522.1,3.9749]
[1642933333172,0.1585,2523.2,2522.1,6.80714484]
[1642933333377,0.67228,2523.4,2522.1,6.80714484]
[1642933333576,0.474,2523.4,2522.1,3.9749]
[1642933334379,2.24932502,2523.3,2522.1,3.9749]
[1642933334583,2.24932502,2523.3,2521.8,0.0001]
[1642933334779,0.1585,2523.2,2521.8,3.8982]
[1642933334978,0.19828,2523.1,2521.8,3.8982]
[1642933335178,0.1585,2523.0,2521.8,3.8982]
[1642933335380,0.3,2523.1,2521.8,26.8482]
[1642933335579,0.1585,2523.2,2522.5,1.45348859]
[1642933335780,0.29669996,2523.5,2522.5,1.45348859]
[1642933335982,0.13819996,2523.5,2522.5,1.45348859]
[1642933336521,0.13819996,2523.5,2522.7,0.00721786]
[1642933336820,0.13819996,2523.5,2522.6,22.95]
[1642933337621,4.4058,2523.6,2522.6,22.95]
[1642933337825,4.5643,2523.6,2522.6,22.95]
[1642933338024,1.0,2523.5,2522.6,22.95]
[1642933338627,1.0,2523.5,2523.1,1.31288104]
[1642933339026,1.7585,2523.6,2523.1,1.31288104]
[1642933339227,1.7585,2523.6,2522.7,3.7953]
[1642933339527,1.7585,2523.6,2522.6,22.95]
[1642933339731,1.79068389,2523.6,2522.6,22.95]
[1642933339927,1.79068389,2523.6,2522.3,3.6533]
[1642933339928,0.19828,2523.5,2522.3,3.6533]
[1642933340180,0.19828,2523.5,2522.5,1.13447852]
[1642933340181,0.1585,2523.4,2522.5,1.13447852]
[1642933342678,0.6325,2523.4,2522.5,1.13447852]
[1642933342877,0.9325,2523.4,2522.5,1.13447852]
[1642933343075,0.3,2523.3,2522.5,1.13447852]
[1642933343375,0.3,2523.3,2522.9,1.19532281]
[1642933345835,0.1585,2523.2,2522.9,1.19532281]
[1642933346136,0.4585,2523.3,2522.9,1.19532281]
[1642933347773,0.4585,2523.3,2522.3,3.6533]
[1642933348178,2.24946621,2523.2,2522.3,3.6533]
[1642933348376,2.54946621,2523.2,2522.3,3.6533]
[1642933348576,2.58596142,2523.2,2522.3,3.6533]
[1642933349378,2.54946621,2523.2,2523.0,1.15069597]
[1642933349578,0.3,2523.2,2523.0,1.15069597]
[1642933349780,1.0,2523.6,2523.0,1.15069597]
[1642933349781,7.48,2523.7,2523.0,1.15069597]
[1642933350179,0.1585,2523.8,2523.0,1.15069597]
[1642933350479,2.69931476,2524.1,2523.6,1.53300062]
[1642933350679,0.1584,2524.0,2523.6,1.53300062]
[1642933351080,0.1584,2524.1,2523.6,1.53300062]
[1642933351325,0.1084,2524.1,2523.6,1.53300062]
[1642933352226,2.24882764,2524.0,2523.6,1.53300062]
[1642933352426,0.1584,2523.9,2523.6,1.53300062]
[1642933353626,0.3,2524.0,2523.6,1.53300062]
[1642933354026,0.7584,2524.1,2523.6,1.53300062]
[1642933354630,2.24885469,2524.0,2523.6,1.53300062]
[1642933355877,3.24885469,2524.0,2523.6,1.53300062]
[1642933356480,0.30247585,2523.9,2523.6,1.53300062]
[1642933356880,0.30247585,2523.8,2523.6,1.53300062]
[1642933362871,0.30247585,2523.8,2523.7,22.95]
[1642933363071,0.30247585,2523.8,2523.6,1.53300062]
[1642933366728,0.60247585,2523.8,2523.1,3.9022]
[1642933367027,0.00421324,2523.5,2523.1,3.9022]
[1642933367229,0.46518909,2523.5,2522.9,0.13819997]
[1642933367428,0.30247585,2523.4,2522.9,0.13819997]
[1642933367827,0.60247585,2523.4,2522.9,0.13819997]
[1642933368026,0.60247585,2523.4,2523.0,1.47797452]
[1642933368229,0.60247585,2523.4,2522.5,3.6161]
[1642933368438,0.1585,2523.3,2522.5,3.6161]
[1642933368629,0.30247585,2523.2,2522.5,3.6161]
[1642933368830,0.30247585,2523.1,2522.5,3.6161]
[1642933369029,0.30247585,2523.1,2522.1,0.14825]
[1642933369231,0.00644965,2523.0,2522.6,1.49723763]
[1642933369431,0.30247585,2523.1,2522.6,1.49723763]
[1642933369633,0.30247585,2523.1,2522.7,22.95]
[1642933370989,0.30247585,2523.1,2523.0,6.24805899]
[1642933372193,3.4441456,2524.1,2523.2,22.95]
[1642933372194,0.15903,2524.1,2523.2,22.95]
[1642933372389,7.48,2524.2,2523.8,1.42284543]
[1642933372591,0.1584,2524.1,2523.8,1.42284543]
[1642933373827,2.24873356,2524.0,2523.8,1.42284543]
[1642933374628,2.54503668,2523.9,2522.7,0.1584]
[1642933374832,0.01208496,2523.2,2522.7,0.1584]
[1642933375031,0.05317298,2523.7,2522.7,0.1584]
[1642933375032,0.1585,2523.1,2522.7,0.1584]
[1642933375231,0.16549335,2523.5,2522.1,1.2391]
[1642933375629,0.16549335,2523.5,2522.7,1.3339956]
[1642933375829,0.1585,2523.5,2522.7,1.3339956]
[1642933376030,0.16278416,2523.5,2522.7,1.3339956]
[1642933376234,2.24873356,2523.4,2522.7,1.3339956]
[1642933376434,0.16779561,2523.3,2522.7,1.3339956]
[1642933376630,0.46779561,2523.3,2522.7,1.3339956]
[1642933377032,0.4585,2523.3,2522.7,1.3339956]
[1642933377230,0.3,2523.3,2522.7,1.3339956]
[1642933377782,0.3,2523.3,2523.1,1.31783438]
[1642933377981,0.4585,2523.5,2523.1,1.31783438]
[1642933378181,17.27996388,2525.2,2523.1,1.31783438]
[1642933378182,0.1585,2523.7,2523.1,1.31783438]
[1642933378381,0.474,2524.3,2523.1,1.31783438]
[1642933378382,0.1585,2524.0,2523.1,1.31783438]
[1642933378582,0.1585,2524.1,2523.2,22.95]
[1642933378786,2.24888742,2523.9,2523.2,22.95]
[1642933378984,2.24888742,2523.9,2523.4,22.95]
[1642933379182,2.24888742,2523.9,2523.5,1.27309915]
[1642933379382,2.24888742,2523.9,2523.5,24.22309915]
[1642933379983,2.24888742,2524.4,2523.5,24.22309915]
[1642933380389,2.24888742,2524.4,2523.5,1.27309915]
[1642933380593,2.24888742,2524.4,2523.0,1.2263]
[1642933380594,2.44716742,2524.4,2523.0,1.2263]
[1642933380789,2.44716742,2524.4,2522.9,0.1585]
[1642933380790,0.01235188,2524.0,2522.9,0.1585]
[1642933380990,0.6325,2523.9,2522.9,0.1585]
[1642933381191,0.83078,2523.9,2522.9,0.1585]
[1642933381433,0.23790163,2522.8,2522.3,6.52663668]
[1642933381627,0.23790163,2522.8,2522.4,1.20867776]
[1642933382426,0.23790163,2522.8,2522.3,3.9816]
[1642933382626,0.23790163,2522.8,2521.8,0.13829997]
[1642933382627,0.43618163,2522.8,2521.8,0.13829997]
[1642933382832,0.43618163,2522.8,2521.8,3.85989997]
[1642933382833,2.40738742,2522.7,2521.8,3.85989997]
[1642933383031,4.00738742,2522.7,2521.8,3.85989997]
[1642933383432,0.474,2522.6,2521.9,1.14672751]
[1642933383633,0.1585,2522.5,2521.9,1.14672751]
[1642933384037,2.54888742,2522.4,2521.9,1.14672751]
[1642933384238,2.84888742,2522.4,2521.9,1.14672751]
[1642933385284,0.6,2522.4,2521.9,1.14672751]
[1642933385885,0.3,2522.4,2521.9,1.14672751]
[1642933386085,0.65678,2522.5,2521.9,1.14672751]
[1642933386285,0.65678,2522.5,2521.8,0.13829997]
[1642933386286,0.65678,2522.5,2521.8,0.0001]
[1642933386791,0.83198,2522.5,2521.8,0.0001]
[1642933387188,0.474,2522.4,2521.8,0.0001]
[1642933387388,0.1585,2522.3,2521.8,0.0001]
[1642933387587,0.474,2522.4,2521.8,0.0001]
[1642933387588,0.3,2522.4,2521.8,0.0001]
[1642933387789,0.474,2522.3,2521.8,0.0001]
[1642933387987,0.774,2522.3,2521.8,0.0001]
[1642933389049,2.24993033,2522.2,2521.8,0.0001]
[1642933389252,2.54993033,2522.2,2521.8,0.0001]
[1642933389452,3.84993033,2522.2,2521.8,0.0001]
[1642933389653,0.00732243,2522.1,2521.8,0.0001]
[1642933389853,0.02304426,2522.0,2521.8,0.0001]
[1642933390054,3.6325,2521.9,2521.8,0.0001]
[1642933390252,6.68071033,2521.9,2521.8,0.0001]
[1642933390452,7.68071033,2521.9,2521.8,0.0001]
[1642933390652,7.71842711,2521.9,2521.8,0.0001]
[1642933391657,5.46849678,2521.9,2521.8,0.0001]
[1642933392897,7.97623939,2521.9,2521.8,0.0001]
[1642933394597,4.97623939,2521.9,2521.8,0.0001]
[1642933395396,2.72589678,2521.9,2521.8,0.0001]
[1642933395597,0.96739678,2521.9,2521.8,0.0001]
[1642933395802,0.7314,2521.9,2521.8,0.0001]
[1642933396426,0.96271268,2521.9,2521.8,0.0001]
[1642933396625,3.91271268,2521.9,2521.8,0.0001]
[1642933397031,5.51271268,2521.9,2521.8,0.0001]
[1642933398834,1.3314,2521.9,2521.8,0.0001]
[1642933399136,1.3314,2521.9,2521.1,23.09825]
[1642933399137,0.2574,2521.9,2521.1,23.09825]
[1642933399334,0.2574,2521.9,2521.3,23.00240246]
[1642933399537,0.2574,2521.9,2521.4,0.14825]
[1642933399736,0.2574,2521.9,2521.5,0.05531902]
[1642933399932,0.2574,2521.9,2521.5,1.45147785]
[1642933401080,0.2574,2521.9,2521.5,1.39615883]
[1642933401282,0.2574,2521.9,2521.5,27.22688576]
[1642933401481,0.2574,2521.9,2521.5,24.34615883]
[1642933402080,0.2574,2521.9,2521.7,22.95]
[1642933402285,8.12532321,2523.1,2521.8,2.91215805]
[1642933402480,0.6325,2523.5,2521.9,23.09825]
[1642933402680,0.474,2523.5,2522.1,22.95]
[1642933403079,0.67228,2523.5,2522.8,1.36740628]
[1642933403281,0.1585,2523.4,2522.8,1.36740628]
[1642933403480,0.36412257,2523.4,2522.8,1.36740628]
[1642933403936,0.20562257,2523.3,2522.8,1.36740628]
[1642933404533,0.20562257,2523.3,2522.8,0.14825]
[1642933404735,0.20562257,2523.3,2522.5,3.6108]
[1642933406040,0.20562257,2523.3,2523.2,1.21518427]
[1642933406637,0.20562257,2523.3,2523.2,4.46518427]
[1642933408878,0.20562257,2523.5,2523.2,4.46518427]
[1642933409078,0.1585,2523.4,2523.2,4.46518427]
[1642933411626,0.20562257,2523.5,2523.2,4.46518427]
[1642933412630,0.20562257,2523.5,2523.3,22.95]
[1642933413225,0.6325,2524.6,2523.4,6.9]
[1642933413428,7.48,2524.3,2523.4,9.74347902]
[1642933413629,7.48,2524.3,2523.4,9.80520375]
[1642933413828,7.48,2524.3,2523.5,22.95]
[1642933414027,7.48,2524.3,2523.6,3.12539065]
[1642933414230,7.48,2524.3,2523.5,1.0842]
[1642933414430,7.48,2524.3,2524.1,1.47201398]
[1642933415075,7.78,2524.3,2524.1,1.47201398]
[1642933415883,7.78,2524.3,2523.3,3.83995]
[1642933416282,7.78,2524.3,2523.3,3.56185]
[1642933416486,7.78,2524.3,2523.3,2.8574]
[1642933416487,3.75785367,2524.2,2523.3,2.8574]
[1642933416685,0.1584,2524.1,2523.3,2.8574]
[1642933416884,0.1584,2524.1,2523.5,1.53180295]
[1642933417483,0.3,2524.1,2523.5,1.53180295]
[1642933417685,8.554,2524.3,2523.5,1.53180295]
[1642933418287,8.554,2524.3,2524.0,1.35727436]
[1642933418686,8.554,2524.3,2523.4,3.9193]
[1642933418932,8.554,2524.3,2523.3,22.95]
[1642933419333,8.554,2524.3,2523.2,0.2781]
[1642933419533,2.57425202,2524.2,2523.2,0.2781]
[1642933419734,1.0,2524.1,2523.2,0.2781]
[1642933419933,0.1585,2524.0,2523.2,0.2781]
[1642933420140,3.35761984,2524.0,2523.5,1.51658828]
[1642933420338,0.7585,2524.0,2523.5,1.51658828]
[1642933421136,3.34236304,2524.0,2523.5,1.51658828]
[1642933421339,0.7585,2524.0,2523.5,1.51658828]
[1642933421938,0.4585,2524.0,2523.5,1.51658828]
[1642933422138,0.7585,2524.0,2523.5,1.51658828]
[1642933422977,0.4585,2524.0,2523.5,0.51558828]
[1642933423184,0.4585,2524.0,2523.1,3.6296]
[1642933423185,2.7783384,2523.9,2523.1,3.6296]
[1642933423380,2.7783384,2523.9,2522.8,1.2182]
[1642933423381,0.66569359,2523.8,2522.8,1.2182]
[1642933423583,0.00375256,2523.6,2522.8,1.2182]
[1642933423785,0.1585,2523.5,2522.8,1.2182]
[1642933423990,0.1585,2523.5,2522.7,3.6806]
[1642933423991,2.68929513,2523.5,2522.7,3.6806]
[1642933424184,2.68929513,2523.5,2522.9,1.21266135]
[1642933424385,0.474,2523.4,2522.9,1.21266135]
[1642933424584,0.774,2523.4,2522.9,1.21266135]
[1642933425186,0.774,2523.4,2522.3,3.79025]
[1642933425386,0.774,2523.4,2522.4,22.95]
[1642933425793,0.774,2523.4,2522.3,3.79025]
[1642933426187,1.774,2523.4,2522.6,1.30381248]
[1642933426629,4.39938951,2523.4,2522.6,1.30381248]
[1642933426830,4.43094302,2523.4,2522.6,1.30381248]
[1642933427232,1.774,2523.4,2522.6,1.30381248]
[1642933427632,0.774,2523.4,2522.6,1.30381248]
[1642933429634,0.774,2523.4,2522.3,3.79025]
[1642933429635,0.774,2523.4,2523.1,1.18653659]
[1642933430097,4.443,2523.8,2523.1,1.18653659]
[1642933430290,0.1585,2523.9,2523.1,1.18653659]
[1642933430490,0.474,2524.0,2523.1,1.18653659]
[1642933431495,0.474,2524.0,2522.8,24.09825]
[1642933431496,0.774,2524.0,2522.8,1.14825]
[1642933431691,0.774,2524.0,2522.8,0.14825]
[1642933431892,4.84733595,2523.9,2522.7,3.7527]
[1642933432093,0.1585,2523.8,2522.7,3.7527]
[1642933432390,1.4585,2523.8,2522.6,1.1325]
[1642933432592,1.4585,2523.8,2523.3,1.48079728]
[1642933432794,2.24883097,2523.9,2523.7,4.20573396]
[1642933433194,0.17109293,2524.5,2523.7,4.20573396]
[1642933434534,2.24842844,2524.4,2523.7,4.20573396]
[1642933434734,0.1584,2524.3,2523.7,4.20573396]
[1642933434935,2.40682844,2524.4,2523.7,4.20573396]
[1642933435735,2.24842844,2524.3,2523.7,1.15573396]
[1642933436035,0.1584,2524.2,2523.7,1.15573396]
[1642933436434,1.1584,2524.2,2523.7,1.15573396]
[1642933436636,1.1584,2524.2,2524.1,1.27334269]
[1642933437437,0.1584,2524.2,2524.1,1.27334269]
[1642933438080,0.4584,2524.2,2524.1,1.27334269]
[1642933438280,0.3,2524.2,2524.1,1.27334269]
[1642933438481,0.1584,2524.2,2524.1,1.27334269]
[1642933438682,0.3,2524.2,2524.1,1.27334269]
[1642933438887,0.4584,2524.2,2524.1,1.27334269]
[1642933439582,0.1584,2524.2,2524.1,1.27334269]
[1642933439785,0.1584,2524.5,2524.1,1.27334269]
[1642933439984,0.474,2524.6,2524.1,1.27334269]
[1642933440187,0.1584,2524.5,2524.1,1.27334269]
[1642933440588,0.474,2524.6,2524.1,1.27334269]
[1642933440888,0.774,2524.6,2524.1,1.27334269]
[1642933442132,0.774,2524.6,2524.5,1.51435601]
[1642933443132,0.474,2524.6,2524.5,4.81435601]
[1642933443333,0.17131788,2525.0,2524.5,4.81435601]
[1642933443532,4.3335,2525.1,2524.9,1.21758133]
[1642933443732,1.22556763,2525.3,2524.9,1.21758133]
[1642933444140,0.6324,2525.3,2524.9,1.21758133]
[1642933444537,0.9324,2525.3,2524.9,1.21758133]
[1642933444935,1.2324,2525.3,2524.9,1.21758133]
[1642933445987,1.2324,2525.3,2524.5,3.3]
[1642933445988,2.24794486,2525.2,2524.5,3.3]
[1642933446190,0.1584,2525.1,2524.5,3.3]
[1642933446390,0.1584,2525.1,2524.1,1.1397]
[1642933446591,0.474,2525.0,2524.1,1.1397]
[1642933446796,0.1584,2524.9,2523.9,1.36069997]
[1642933447192,0.4584,2524.9,2524.5,1.16139335]
[1642933448491,2.24800293,2524.8,2524.5,1.16139335]
[1642933448935,2.54800293,2524.8,2524.5,1.16139335]
[1642933449838,2.24800293,2524.7,2524.5,1.15989414]
[1642933450039,2.54800293,2524.7,2524.5,1.15989414]
[1642933450741,2.54800293,2524.7,2523.9,2.55719997]
[1642933450945,0.3,2524.7,2523.9,0.13819997]
[1642933451143,0.7584,2524.9,2523.9,0.13819997]
[1642933451542,0.7584,2524.9,2524.6,1.36290491]
[1642933455805,0.1584,2524.9,2524.6,1.36290491]
[1642933456105,0.6324,2525.0,2524.6,1.36290491]
[1642933456936,0.9324,2525.0,2524.6,1.36290491]
[1642933457335,2.54798883,2524.9,2524.6,1.36290491]
[1642933458440,2.24798883,2524.8,2524.6,1.36290491]
[1642933459039,2.54798883,2524.8,2524.6,1.36290491]
[1642933459843,0.3,2524.8,2524.6,1.36290491]
[1642933460088,0.3,2524.9,2524.6,1.36290491]
[1642933461094,0.40256105,2524.8,2524.6,1.36290491]
[1642933461292,2.85657093,2525.5,2524.7,7.09825]
[1642933461494,2.85657093,2525.5,2524.9,0.03417756]
[1642933461694,0.1584,2527.2,2525.4,0.01222706]
[1642933461898,0.59817043,2527.8,2525.4,0.01222706]
[1642933461899,0.59817043,2527.8,2526.4,0.01235131]
[1642933461900,1.43487428,2527.4,2526.4,0.01235131]
[1642933462196,0.1583,2528.0,2526.4,0.01235131]
[1642933462197,0.1583,2527.7,2526.4,0.01235131]
[1642933462391,1.22868775,2528.0,2526.3,0.40021]
[1642933462392,0.474,2527.8,2526.3,0.40021]
[1642933462589,0.170602,2527.7,2526.3,0.40021]
[1642933462990,1.10399144,2526.8,2526.3,0.2022]
[1642933463190,1.10399144,2526.8,2525.8,2.83872502]
[1642933463191,1.10399144,2526.8,2525.9,0.474]
[1642933463835,1.10399144,2526.8,2526.2,1.43001084]
[1642933464236,0.1583,2526.7,2525.4,3.8045]
[1642933464435,0.1583,2526.7,2525.4,3.7575]
[1642933464436,2.64081502,2526.7,2525.4,3.7575]
[1642933464640,0.1583,2526.7,2525.4,3.7575]
[1642933464842,2.86744102,2526.7,2525.4,3.7575]
[1642933465037,1.0,2526.6,2525.4,3.7575]
[1642933465243,1.0,2526.6,2525.8,1.15146069]
[1642933465244,2.88840221,2526.5,2525.8,1.15146069]
[1642933465440,1.27184167,2525.9,2525.4,3.7575]
[1642933465641,1.27184167,2525.9,2525.3,0.2203]
[1642933465840,1.0,2526.4,2525.3,0.2203]
[1642933465841,0.1583,2526.3,2525.3,0.2203]
[1642933466845,1.28489003,2526.2,2525.3,0.2203]
[1642933467046,0.1583,2526.1,2525.3,0.2203]
[1642933467689,0.1583,2526.1,2525.7,1.50516806]
[1642933469193,0.1583,2526.1,2525.3,0.2203]
[1642933470198,0.48921563,2525.4,2525.3,0.2203]
[1642933470605,0.64751563,2525.4,2525.3,0.2203]
[1642933470999,0.1583,2525.4,2525.3,0.2203]
[1642933471431,0.1583,2525.9,2525.3,0.2203]
[1642933471630,1.03167988,2526.1,2525.3,0.2203]
[1642933471631,0.1583,2526.0,2525.3,0.2203]
[1642933472234,4.4205,2526.2,2525.4,1.1082265]
[1642933472435,0.1583,2526.4,2525.4,0.19801]
[1642933472636,4.2152,2526.7,2525.4,3.8487]
[1642933472839,0.1583,2526.6,2525.4,3.8487]
[1642933473037,0.19496071,2526.6,2525.4,3.8487]
[1642933473538,0.19496071,2526.6,2526.0,1.54462416]
[1642933473740,0.19496071,2526.6,2525.4,3.8487]
[1642933474139,1.4583,2526.6,2525.4,26.7987]
[1642933474339,1.53817977,2526.2,2525.4,3.8487]
[1642933474539,0.3,2526.2,2525.3,0.19801]
[1642933474746,1.4583,2526.6,2525.3,0.19801]
[1642933474940,1.4583,2526.6,2526.2,1.46474494]
[1642933475224,1.3,2526.6,2526.2,1.46474494]
[1642933475621,1.19431097,2526.4,2526.2,1.46474494]
[1642933475823,1.49431097,2526.4,2526.2,1.46474494]
[1642933476020,1.79431097,2526.4,2526.2,1.46474494]
[1642933476222,0.6,2526.4,2525.4,22.95]
[1642933476422,0.1583,2526.3,2525.4,22.95]
[1642933477225,1.36727434,2526.6,2525.4,22.95]
[1642933477425,0.1583,2526.6,2525.4,22.95]
[1642933477625,0.1583,2526.8,2525.4,22.95]
[1642933478228,0.1583,2526.8,2525.2,24.085]
[1642933478429,0.1583,2526.8,2526.3,1.54445872]
[1642933478626,0.1583,2526.8,2525.3,3.19050802]
[1642933478627,0.1583,2526.8,2525.3,0.35631]
[1642933478836,0.89708736,2526.7,2525.3,0.19801]
[1642933479139,0.19809321,2526.6,2525.3,0.19801]
[1642933479341,0.1583,2526.6,2525.3,0.19801]
[1642933479539,1.13027246,2526.5,2525.3,0.19801]
[1642933479740,1.43027246,2526.5,2525.3,0.19801]
[1642933479942,1.43027246,2526.5,2526.1,1.15015434]
[1642933480641,1.43027246,2526.5,2525.3,0.19801]
[1642933480843,1.43027246,2526.5,2525.2,1.135]
[1642933480844,1.46532466,2526.5,2525.2,1.135]
[1642933481044,0.1583,2526.4,2525.2,1.135]
[1642933481846,0.1583,2526.4,2526.0,1.33664059]
[1642933482349,0.01253415,2526.3,2525.2,1.135]
[1642933482627,0.1583,2526.2,2525.2,1.135]
[1642933483226,0.1583,2526.2,2525.5,1.53015004]
[1642933483631,1.1583,2526.2,2525.5,1.53015004]
[1642933483827,1.1583,2526.2,2525.0,3.69164556]
[1642933484026,1.1583,2526.2,2525.0,1.1909]
[1642933484925,1.1583,2526.2,2525.5,1.38754526]
[1642933485331,0.1583,2526.2,2525.5,1.38754526]
[1642933485732,0.1583,2526.5,2525.5,1.38754526]
[1642933485931,0.19774939,2526.6,2525.5,1.38754526]
[1642933486132,0.1583,2526.5,2525.5,1.38754526]
[1642933486537,1.55310573,2526.4,2525.9,1.18581728]
[1642933486941,2.15310573,2526.4,2525.9,1.18581728]
[1642933487338,2.15310573,2526.4,2525.2,0.19801]
[1642933488343,2.15310573,2526.4,2525.8,1.24248053]
[1642933488541,0.6,2526.4,2525.8,1.24248053]
[1642933488941,0.3,2526.4,2525.8,1.24248053]
[1642933489543,0.3,2526.4,2525.2,0.19801]
[1642933489943,1.54320299,2526.3,2525.2,0.19801]
[1642933490208,1.84320299,2526.3,2525.2,0.19801]
[1642933490407,0.3,2526.3,2525.2,0.19801]
[1642933490606,0.3,2526.4,2525.2,0.19801]
[1642933490811,0.3,2526.4,2525.7,1.27287249]
[1642933492210,0.1583,2526.3,2525.7,1.27287249]
[1642933492612,0.4583,2526.4,2525.7,1.27287249]
[1642933492813,0.49390646,2526.4,2525.7,1.27287249]
[1642933494034,1.1993709,2526.3,2525.7,1.27287249]
[1642933494236,1.23015991,2526.3,2525.7,1.27287249]
[1642933494834,1.1993709,2526.3,2525.7,1.27287249]
[1642933495241,0.3,2526.3,2525.7,1.27287249]
[1642933495439,0.7583,2526.4,2525.7,1.27287249]
[1642933496045,0.4583,2526.4,2525.7,1.27287249]
[1642933496641,0.49184351,2526.4,2525.7,1.27287249]
[1642933497040,0.4583,2526.4,2525.7,1.27287249]
[1642933497684,0.90026567,2526.3,2525.7,1.27287249]
[1642933497887,1.20026567,2526.3,2525.7,1.27287249]
[1642933498990,0.90026567,2526.2,2525.7,1.27287249]
[1642933499393,1.20026567,2526.2,2525.7,1.27287249]
[1642933500195,0.90026567,2526.1,2525.7,1.27287249]
[1642933500596,1.20026567,2526.1,2525.7,1.27287249]
[1642933501539,0.90026567,2526.0,2525.7,1.27287249]
[1642933501742,0.85026567,2526.0,2525.7,1.27287249]
[1642933501939,1.15026567,2526.0,2525.7,1.27287249]
[1642933502740,0.3,2526.0,2525.7,1.27287249]
[1642933503140,0.4583,2526.1,2525.7,1.27287249]
[1642933503345,0.1583,2526.4,2525.7,1.27287249]
[1642933504245,2.08579085,2526.7,2525.7,1.47088249]
[1642933504442,1.49494836,2526.7,2525.7,1.47088249]
[1642933504645,1.49494836,2526.7,2525.9,0.01275811]
[1642933504847,1.49494836,2526.7,2525.8,2.92998624]
[1642933505290,0.13819996,2526.9,2525.8,2.91541309]
[1642933505492,0.13819996,2526.9,2525.9,3.9973]
[1642933505692,0.13819996,2526.9,2526.0,2.95365836]
[1642933505892,0.13819996,2526.9,2526.0,2.78287792]
[1642933506096,0.13819996,2526.9,2526.0,2.80918666]
[1642933506693,0.13819996,2526.9,2526.0,1.2452869]
[1642933506892,0.1583,2526.8,2526.0,1.2452869]
[1642933507293,1.1583,2526.8,2526.0,1.2452869]
[1642933507496,1.40169937,2526.7,2526.0,1.2452869]
[1642933507694,1.70169937,2526.7,2526.0,1.2452869]
[1642933507895,0.88967006,2526.6,2526.0,1.2452869]
[1642933508596,0.92614734,2526.6,2526.0,1.2452869]
[1642933509035,0.88967006,2526.6,2526.0,1.2452869]
[1642933509235,0.88967006,2526.5,2526.0,1.2452869]
[1642933510342,0.88967006,2526.6,2526.0,1.2452869]
[1642933511044,0.92768062,2526.6,2526.0,1.2452869]
[1642933511640,0.88967006,2526.5,2526.0,1.2452869]
[1642933512888,0.88967006,2526.7,2526.0,1.2452869]
[1642933513089,2.66206921,2526.7,2526.0,1.2452869]
[1642933513290,0.3,2526.6,2526.0,1.2452869]
[1642933514492,0.3,2526.7,2526.0,1.2452869]
[1642933514690,1.4583,2526.8,2526.0,1.2452869]
[1642933514691,0.4583,2526.8,2526.0,1.2452869]
[1642933514891,0.7583,2526.8,2526.0,1.2452869]
[1642933515090,0.4583,2526.8,2526.0,1.2452869]
[1642933515495,0.89071133,2526.7,2526.0,1.2452869]
[1642933516542,0.3,2526.6,2526.0,1.2452869]
[1642933517936,0.89071133,2526.5,2526.0,1.2452869]